Workbook

Sheet CBP90043
A1: 基因 | B1: 位点 | C1: 突变型拷贝数（copies/20 ul) | D1: 野生型拷贝数（copies/20 ul) | E1: 突变比例% | F1: ddPCR
A2: EGFR | B2: G719A | C2: 164 | D2: 3100 | E2: =C2/D2 -> 5.29% | F2: =AVERAGE(E2:E4) -> 5.78%
C3: 188 | D3: 3060 | E3: 5.79%
C4: 194 | D4: 2900 | E4: 6.27%
A5: EGFR | B5: C797S | C5: 121 | D5: 2901 | E5: 4.17% | F5: =AVERAGE(E5:E7) -> 4.01%
C6: 119 | D6: 3060 | E6: 3.89%
C7: 122 | D7: 3074 | E7: 3.97%
A8: EGFR | B8: E746_A750del | C8: 56 | D8: 3000 | E8: 1.83% | F8: =AVERAGE(E8:E10) -> 1.85%
C9: 52 | D9: 3000 | E9: 1.70%
C10: 60 | D10: 2900 | E10: 2.03%
A11: EGFR | B11: S768I | C11: 86 | D11: 2880 | E11: 2.90% | F11: =AVERAGE(E11:E13) -> 2.68%
C12: 80 | D12: 2940 | E12: 2.65%
C13: 76 | D13: 2980 | E13: 2.49%
A14: ERBB2 | B14: A775_G776insYVMA | C14: 80 | D14: 2960 | E14: 2.63% | F14: =AVERAGE(E14:E16) -> 2.55%
C15: 70 | D15: 3060 | E15: 2.24%
C16: 86 | D16: 3020 | E16: 2.77%
A17: MET | B17: c.3082+1G>T | C17: 116 | D17: 3940 | E17: 2.86% | F17: =AVERAGE(E17:E19) -> 2.71%
C18: 96 | D18: 3800 | E18: 2.46%
C19: 108 | D19: 3740 | E19: 2.81%
A20: ROS1 | B20: CD74-ROS1 | C20: 58 | D20: 2920 | E20: 1.99% | F20: =AVERAGE(E20:E22) -> 2.08%
C21: 56 | D21: 2780 | E21: 2.01%
C22: 58 | D22: 2580 | E22: 2.25%
A23: PDGFRA | B23: D842V | C23: 40 | D23: 2780 | E23: 1.42% | F23: =AVERAGE(E23:E25) -> 1.58%
C24: 50 | D24: 2760 | E24: 1.78%
C25: 46 | D25: 2940 | E25: 1.54%
A26: KRAS | B26: Q61H | C26: 174 | D26: 3320 | E26: 4.98% | F26: =AVERAGE(E26:E28) -> 4.57%
C27: 100 | D27: 2720 | E27: 3.55%
C28: 162 | D28: 2960 | E28: 5.19%
A29: KRAS | B29: A146T | C29: 104 | D29: 3120 | E29: 3.23% | F29: =AVERAGE(E29:E31) -> 2.59%
C30: 74 | D30: 3060 | E30: 2.36%
C31: 62 | D31: 2800 | E31: 2.17%
A32: C-KIT | B32: D816V | C32: 76 | D32: 3260 | E32: 2.28% | F32: =AVERAGE(E32:E34) -> 2.20%
C33: 76 | D33: 3020 | E33: 2.45%
C34: 58 | D34: 3020 | E34: 1.88%
A35: NRAS | B35: NRASG12D | C35: 218 | D35: 3080 | E35: =C35/(C35+D35) -> 6.61% | F35: =AVERAGE(E35:E37) -> 6.54%
C36: 206 | D36: 3040 | E36: 6.35%
C37: 204 | D37: 2860 | E37: 6.66%
A38: FLT3 | B38: I836DEL | C38: 168 | D38: 3100 | E38: 5.14% | F38: =AVERAGE(E38:E40) -> 4.78%
C39: 146 | D39: 3100 | E39: 4.50%
C40: 156 | D40: 3160 | E40: 4.70%
A41: IDH2 | B41: R172K | C41: 198 | D41: 3140 | E41: 5.93% | F41: =AVERAGE(E41:E43) -> 4.65%
C42: 132 | D42: 2980 | E42: 4.24%
C43: 126 | D43: 3220 | E43: 3.77%
A44: FGFR3 | B44: S249C | C44: 98 | D44: 3140 | E44: 3.03% | F44: =AVERAGE(E44:E46) -> 3.09%
C45: 104 | D45: 2920 | E45: 3.44%
C46: 90 | D46: 3140 | E46: 2.79%
A47: AKT1 | B47: E17K | C47: 138 | D47: 3140 | E47: 4.21% | F47: =AVERAGE(E47:E49) -> 4.64%
C48: 140 | D48: 2920 | E48: 4.58%
C49: 178 | D49: 3300 | E49: 5.12%
A50: EGFR | B50: T790M | C50: 114 | D50: 2940 | E50: =C50/(C50+D50) -> 3.73% | F50: =AVERAGE(E50:E52) -> 3.00%
C51: 78 | D51: 3060 | E51: 2.49%
C52: 80 | D52: 2800 | E52: 2.78%
A53: EGFR | B53: L858R | C53: 154 | D53: 3140 | E53: 4.68% | F53: =AVERAGE(E53:E55) -> 5.07%
C54: 194 | D54: 3480 | E54: 5.28%
C55: 162 | D55: 2920 | E55: 5.26%
A56: IDH2 | B56: R140Q | C56: 64 | D56: 3120 | E56: 2.01% | F56: =AVERAGE(E56:E58) -> 2.65%
C57: 88 | D57: 2920 | E57: 2.93%
C58: 96 | D58: 3080 | E58: 3.02%
A59: BTK | B59: C481S | C59: 68 | D59: 2520 | E59: 2.63% | F59: =AVERAGE(E59:E61) -> 3.16%
C60: 80 | D60: 2180 | E60: 3.54%
C61: 82 | D61: 2400 | E61: 3.30%
A62: KRAS | B62: G13D | C62: 244 | D62: 2900 | E62: 7.76% | F62: =AVERAGE(E62:E64) -> 8.66%
C63: 274 | D63: 2800 | E63: 8.91%
C64: 308 | D64: 3000 | E64: 9.31%
A65: BRCA2 | B65: I2675FS | C65: 370 | D65: 2920 | E65: 11.25% | F65: =AVERAGE(E65:E67) -> 11.87%
C66: 420 | D66: 3020 | E66: 12.21%
C67: 434 | D67: 3140 | E67: 12.14%
A68: BRAF | B68: V600E | C68: 1820 | D68: 2360 | E68: 43.54% | F68: =AVERAGE(E68:E70) -> 43.55%
C69: 1860 | D69: 2420 | E69: 43.46%
C70: 1860 | D70: 2400 | E70: 43.66%
A71: PIK3CA | B71: H1047R | C71: 1234 | D71: 2680 | E71: 31.53% | F71: =AVERAGE(E71:E73) -> 31.74%
C72: 1134 | D72: 2520 | E72: 31.03%
C73: 1212 | D73: 2500 | E73: 32.65%
A74: NRAS | B74: Q61K | C74: 434 | D74: 2820 | E74: 13.34% | F74: =AVERAGE(E74:E76) -> 12.81%
C75: 444 | D75: 2900 | E75: 13.28%
C76: 386 | D76: 2880 | E76: 11.82%
A77: IDH1 | B77: R132C | C77: 448 | D77: 2700 | E77: 14.23% | F77: =AVERAGE(E77:E79) -> 14.15%
C78: 402 | D78: 2240 | E78: 15.22%
C79: 404 | D79: 2700 | E79: 13.02%
A80: BRCA1 | B80: D435Y | C80: 1046 | D80: 2660 | E80: 28.22% | F80: =AVERAGE(E80:E82) -> 28.77%
C81: 976 | D81: 2500 | E81: 28.08%
C82: 978 | D82: 2280 | E82: 30.02%
A83: BRCA2 | B83: N1784fs | C83: 1032 | D83: 2460 | E83: 29.55% | F83: =AVERAGE(E83:E85) -> 29.28%
C84: 998 | D84: 2480 | E84: 28.69%
C85: 1068 | D85: 2540 | E85: 29.60%
A86: CTNNB1 | B86: S45del | C86: 334 | D86: 3480 | E86: 8.76% | F86: =AVERAGE(E86:E88) -> 8.51%
C87: 272 | D87: 3120 | E87: 8.02%
C88: 286 | D88: 2980 | E88: 8.76%
A89: FANCA | B89: 345Vfs*63 | C89: 892 | D89: 2800 | E89: 24.16% | F89: =AVERAGE(E89:E91) -> 24.50%
C90: 916 | D90: 2660 | E90: 25.62%
C91: 840 | D91: 2700 | E91: 23.73%
A92: GATA2 | B92: G200Vfs | C92: 160 | D92: 3500 | E92: 4.37% | F92: =AVERAGE(E92:E94) -> 4.78%
C93: 204 | D93: 3680 | E93: 5.25%
C94: 176 | D94: 3560 | E94: 4.71%
A95: BCORL1 | B95: P1681Qfs | C95: 1120 | D95: 1226 | E95: 47.74% | F95: =AVERAGE(E95:E97) -> 48.11%
C96: 1234 | D96: 1306 | E96: 48.58%
C97: 1104 | D97: 1196 | E97: 48.00%
A98: RUNX1 | B98: M267I | C98: 302 | D98: 2940 | E98: 9.32% | F98: =AVERAGE(E98:E100) -> 8.59%
C99: 228 | D99: 2560 | E99: 8.18%
C100: 272 | D100: 3020 | E100: 8.26%
A101: APC | B101: K1454E | C101: 860 | D101: 2460 | E101: 25.90% | F101: =AVERAGE(E101:E103) -> 26.08%
C102: 900 | D102: 2360 | E102: 27.61%
C103: 874 | D103: 2660 | E103: 24.73%
A104: IDH2 | B104: G190D | C104: 1072 | D104: 2960 | E104: 26.59% | F104: =AVERAGE(E104:E106) -> 26.98%
C105: 982 | D105: 2600 | E105: 27.41%
C106: 952 | D106: 2580 | E106: 26.95%
A107: EZH2 | B107: E169K | C107: 970 | D107: 3660 | E107: 20.95% | F107: =AVERAGE(E107:E109) -> 21.57%
C108: 988 | D108: 3500 | E108: 22.01%
C109: 934 | D109: 3360 | E109: 21.75%
A110: FANCA | B110: P615Hfs | C110: 288 | D110: 3320 | E110: 7.98% | F110: =AVERAGE(E110:E112) -> 7.92%
C111: 270 | D111: 3460 | E111: 7.24%
C112: 312 | D112: 3340 | E112: 8.54%
A113: KMT2A | B113: P773Rfs*8 | C113: 1090 | D113: 2560 | E113: =C113/(C113+D113) -> 29.86% | F113: =AVERAGE(E113:E115) -> 28.95%
C114: 1046 | D114: 2640 | E114: 28.38%
C115: 970 | D115: 2420 | E115: 28.61%
A116: MSH6 | B116: Y1066* | C116: 152 | D116: 3460 | E116: 4.21% | F116: =AVERAGE(E116:E118) -> 4.86%
C117: 168 | D117: 3220 | E117: 4.96%
C118: 188 | D118: 3280 | E118: 5.42%
A119: NF1 | B119: N2341Tfs*5 | C119: 880 | D119: 2500 | E119: 26.04% | F119: =AVERAGE(E119:E121) -> 26.79%
C120: 964 | D120: 2400 | E120: 28.66%
C121: 878 | D121: 2540 | E121: 25.69%
A122: ARID1A | B122: P1115Qfs*46 | C122: 988 | D122: 2620 | E122: 27.38% | F122: =AVERAGE(E122:E124) -> 27.74%
C123: 962 | D123: 2540 | E123: 27.47%
C124: 1038 | D124: 2620 | E124: 28.38%
A125: PPP2R1A | B125: R183P | C125: 256 | D125: 3180 | E125: 7.45% | F125: =AVERAGE(E125:E127) -> 8.03%
C126: 278 | D126: 3040 | E126: 8.38%
C127: 276 | D127: 3060 | E127: 8.27%
A128: MLH3 | B128: K585Rfs | C128: 940 | D128: 2720 | E128: 25.68% | F128: =AVERAGE(E128:E130) -> 26.80%
C129: 1000 | D129: 2740 | E129: 26.74%
C130: 1034 | D130: 2660 | E130: 27.99%
A131: NF1 | B131: Y628Tfs*3 | C131: 1174 | D131: 3220 | E131: 26.72% | F131: =AVERAGE(E131:E133) -> 27.12%
C132: 1312 | D132: 3300 | E132: 28.45%
C133: 1236 | D133: 3480 | E133: 26.21%
A134: ARID1A | B134: D1850Tfs*33 | C134: 940 | D134: 2640 | E134: 26.26% | F134: =AVERAGE(E134:E135) -> 26.88%
C135: 926 | D135: 2440 | E135: 27.51%
A136: MLH1 | B136: S252* | C136: 628 | D136: 2960 | E136: 17.50% | F136: 17.49%
C137: 606 | D137: 2860 | E137: 17.48%
A138: MSH6 | B138: T1085Hfs*8 | C138: 174 | D138: 3240 | E138: 5.10% | F138: 5.62%
C139: 198 | D139: 3020 | E139: 6.15%
A140: TSC2 | B140: Y602H | C140: 1158 | D140: 3060 | E140: 27.45% | F140: =AVERAGE(E140:E142) -> 27.03%
C141: 1096 | D141: 3120 | E141: 26.00%
C142: 1108 | D142: 2900 | E142: 27.64%
A143: TSC2 | B143: V805I | C143: 1102 | D143: 3040 | E143: 26.61% | F143: =AVERAGE(E143:E145) -> 27.49%
C144: 1128 | D144: 2940 | E144: 27.73%
C145: 1136 | D145: 2900 | E145: 28.15%
A146: TET1 | B146: N1611Tfs*13 | C146: 1258 | D146: 3300 | E146: 27.60% | F146: =AVERAGE(E146:E148) -> 27.79%
C147: 1260 | D147: 3120 | E147: 28.77%
C148: 1132 | D148: 3060 | E148: 27.00%
A149: BCOR | B149: R1209Tfs*7 | C149: 314 | D149: 2580 | E149: 10.85% | F149: =AVERAGE(E149:E151) -> 11.45%
C150: 344 | D150: 2480 | E150: 12.18%
C151: 334 | D151: 2620 | E151: 11.31%
A152: FGFR2 | B152: P583L | C152: 324 | D152: 3960 | E152: 7.56% | F152: =AVERAGE(E152:E153) -> 7.74%
C153: 332 | D153: 3860 | E153: 7.92%
A154: CDH1 | B154: H121Tfs*94 | C154: 372 | D154: 3440 | E154: 9.76% | F154: =AVERAGE(E154:E156) -> 9.17%
C155: 320 | D155: 3420 | E155: 8.56%
C156: 356 | D156: 3520 | E156: 9.18%
A157: NF1 | B157: P678Rfs*10 | C157: 290.076 | D157: 3216.098 | E157: 8.27% | F157: =AVERAGE(E157:E159) -> 9.24%
C158: 327.264 | D158: 3112.67 | E158: 9.51%
C159: 323.296 | D159: 2930.042 | E159: 9.94%
A160: MSH3 | B160: K383Rfs*32 | C160: 2399.108 | D160: 945.088 | E160: 71.74% | F160: =AVERAGE(E160:E162) -> 72.42%
C161: 2436.436 | D161: 902.714 | E161: 72.97%
C162: 2411.096 | D162: 911.926 | E162: 72.56%
A163: ABL1 | B163: Y257C | C163: 322 | D163: 4660 | E163: 6.46% | F163: =AVERAGE(E163:E165) -> 7.17%
C164: 378 | D164: 4500 | E164: 7.75%
C165: 332 | D165: 4220 | E165: 7.29%
A166: IDH1 | B166: S261L | C166: 286 | D166: 3760 | E166: 7.07% | F166: =AVERAGE(E166:E168) -> 7.29%
C167: 318 | D167: 3680 | E167: 7.95%
C168: 278 | D168: 3780 | E168: 6.85%
A169: ABL1 | B169: F747I | C169: 198 | D169: 4560 | E169: 4.16% | F169: =AVERAGE(E169:E171) -> 4.03%
C170: 192 | D170: 4680 | E170: 3.94%
C171: 190 | D171: 4580 | E171: 3.98%
A172: AR | B172: T306I | C172: 886 | D172: 1584 | E172: 35.87% | F172: =AVERAGE(E172:E174) -> 36.53%
C173: 926 | D173: 1636 | E173: 36.14%
C174: 918 | D174: 1526 | E174: 37.56%
A175: KMT2A | B175: D877Pfs*8 | C175: 988 | D175: 2820 | E175: 25.95% | F175: =AVERAGE(E175:E177) -> 26.95%
C176: 1010 | D176: 2600 | E176: 27.98%
C177: 988 | D177: 2680 | E177: =C177/(C177+D177) -> 26.94%
A178: ATRX | B178: T1529del | C178: 290.49 | D178: 2384.482 | E178: 10.86% | F178: =AVERAGE(E178:E180) -> 10.43%
C179: 240.84 | D179: 2296.082 | E179: 9.49%
C180: 298.186 | D180: 2429.004 | E180: 10.93%
A181: CDKN2A | B181: G23fs | C181: 368 | D181: 2600 | E181: 12.40% | F181: =AVERAGE(E181:E183) -> 12.77%
C182: 416 | D182: 2680 | E182: 13.44%
C183: 356 | D183: 2500 | E183: 12.46%
A184: CDKN2A | B184: E33fs | C184: 412 | D184: 2740 | E184: 13.07% | F184: =AVERAGE(E184:E186) -> 12.53%
C185: 332 | D185: 2500 | E185: 11.72%
C186: 314 | D186: 2140 | E186: 12.80%
A187: GATA3 | B187: P127Rfs*68 | C187: 152 | D187: 4420 | E187: 3.32% | F187: =AVERAGE(E187:E189) -> 3.77%
C188: 190 | D188: 4300 | E188: 4.23%
C189: 172 | D189: 4400 | E189: 3.76%
A190: MLH1 | B190: K618del | C190: 156.206 | D190: 3253.37 | E190: 4.58% | F190: =AVERAGE(E190:E192) -> 4.75%
C191: 154.97 | D191: 2907.168 | E191: 5.06%
C192: 150.286 | D192: 3112.796 | E192: 4.61%
A193: ERCC5 | B193: c.2533+2T>C | C193: 232.27 | D193: 2942.392 | E193: 7.32% | F193: =AVERAGE(E193:E195) -> 8.01%
C194: 263.666 | D194: 2921.87 | E194: 8.28%
C195: 291.528 | D195: 3164.604 | E195: 8.44%
A196: EP300 | B196: K292Rfs*25 | C196: 852.138 | D196: 2255.148 | E196: 27.42% | F196: =AVERAGE(E196:E198) -> 26.98%
C197: 893.1379 | D197: 2368.642 | E197: 27.38%
C198: 791.606 | D198: 2236.404 | E198: 26.14%
A199: CREBBP | B199: c.1824-2A>G | C199: 849.67 | D199: 2336.004 | E199: 26.67% | F199: =AVERAGE(E199:E201) -> 26.72%
C200: 792.798 | D200: 2263.15 | E200: 25.94%
... 43 more rows
